fUST/lending_fUST_20250809
["ID","MTS","AMOUNT","RATE_DAILY","PERIOD"]
[378142297,1754745064571,-744.36,0.00024109,2]
[378142298,1754745064581,-1487.63,0.00024109,2]
[378142299,1754745064591,-460.0,0.00024109,2]
[378142300,1754745064600,-460.0,0.00024109,2]
[378142301,1754745064611,-1161.91,0.00024109,2]
[378142302,1754745064621,-467.17,0.00024109,2]
[378142303,1754745064631,-243.38921214,0.00024109,2]
[378142304,1754745064640,-1392.39,0.00024109,2]
[378142305,1754745064650,-460.0,0.00024109,2]
[378142306,1754745064660,-505.08,0.00024109,2]
[378142307,1754745064671,-2505.69,0.00024109,2]
[378142308,1754745064680,-460.0,0.00024109,2]
[378142309,1754745064690,-1216.33,0.00024109,2]
[378142310,1754745064700,-460.0,0.00024109,2]
[378142311,1754745064710,-460.0,0.00024109,2]
[378142312,1754745064719,-905.89,0.00024109,2]
[378142313,1754745064728,-5888.0,0.00024172,2]
[378142314,1754745064738,-193.931732,0.00024172,7]
[378142315,1754745064748,-151.0,0.00024172,7]
[378142316,1754745064758,-200.0,0.00024186,15]
[378142317,1754745064769,-200.0,0.00024186,15]
[378142318,1754745064782,-200.0,0.00024186,15]
[378142319,1754745064793,-200.0,0.00024186,15]
[378142320,1754745064804,-200.0,0.00024186,15]
[378142321,1754745064814,-200.0,0.00024186,15]
[378142322,1754745064824,-200.0,0.00024186,15]
[378142323,1754745064835,-360.0,0.00024286,2]
[378142324,1754745064845,-479.5105082,0.00024364,2]
[378142325,1754745064855,-2021.75549115,0.00024364,2]
[378142326,1754745064864,-544.42475222,0.00024364,2]
[378142327,1754745064875,-460.0,0.00024383,2]
[378142328,1754745064885,-460.0,0.00024383,2]
[378142329,1754745064895,-460.0,0.00024383,2]
[378142330,1754745064904,-460.0,0.00024383,2]
[378142331,1754745064915,-463.04,0.00024383,2]
[378142332,1754745064925,-616.05,0.00024383,2]
[378142333,1754745064935,-460.0,0.00024383,2]
[378142334,1754745064945,-464.2,0.00024383,2]
[378142335,1754745064954,-460.0,0.00024383,2]
[378142336,1754745064964,-460.0,0.00024383,2]
[378142337,1754745064974,-391.16315626,0.00024383,2]
[378142338,1754745064983,-460.0,0.00024383,2]
[378142339,1754745064993,-460.0,0.00024383,2]
[378142340,1754745065003,-460.0,0.00024383,2]
[378142341,1754745065012,-513.74,0.00024383,2]
[378142342,1754745065022,-460.0,0.00024383,2]
[378142343,1754745065031,-460.0,0.00024383,2]
[378142344,1754745065041,-460.0,0.00024383,2]
[378142345,1754745065164,-460.0,0.00024383,2]
[378142346,1754745065196,-460.0,0.00024383,2]
[378142347,1754745065206,-638.04,0.00024383,2]
[378142348,1754745065216,-460.0,0.00024383,2]
[378142349,1754745065225,-460.0,0.00024383,2]
[378142350,1754745065234,-460.0,0.00024383,2]
[378142351,1754745065244,-808.51,0.00024383,2]
[378142352,1754745065254,-477.21,0.00024383,2]
[378142353,1754745065264,-460.0,0.00024383,2]
[378142354,1754745065274,-1681.48,0.00024383,2]
[378142355,1754745065284,-1027.3,0.00024383,2]
[378142356,1754745065293,-795.13,0.00024383,2]
[378142357,1754745065307,-490.91,0.00024383,2]
[378142358,1754745065316,-638.22,0.00024383,2]
[378142359,1754745065326,-875.01,0.00024383,2]
[378142360,1754745065335,-460.0,0.00024383,2]
[378142361,1754745065345,-460.0,0.00024383,2]
[378142362,1754745065355,-728.0,0.00024383,2]
[378142363,1754745065366,-480.91,0.00024383,2]
[378142364,1754745065375,-1302.92,0.00024383,2]
[378142365,1754745065386,-1545.8,0.00024383,2]
[378142366,1754745065403,-495.1,0.00024383,2]
[378142367,1754745065412,-525.63,0.00024383,2]
[378142368,1754745065422,-526.31,0.00024383,2]
[378142369,1754745065432,-1355.34,0.00024383,2]
[378142370,1754745065442,-460.0,0.00024383,2]
[378142371,1754745065452,-923.81,0.00024383,2]
[378142372,1754745065461,-4472.04,0.00024383,2]
[378142373,1754745065471,-2093.72,0.00024383,2]
[378142374,1754745065481,-460.0,0.00024383,2]
[378142375,1754745065490,-462.12,0.00024383,2]
[378142376,1754745065500,-867.17,0.00024383,2]
[378142377,1754745065510,-637.96,0.00024383,2]
[378142378,1754745065519,-460.0,0.00024383,2]
[378142379,1754745065529,-535.02,0.00024383,2]
[378142380,1754745065539,-460.0,0.00024383,2]
[378142381,1754745065549,-460.0,0.00024383,2]
[378142382,1754745065564,-744.36,0.00024383,2]
[378142383,1754745065575,-1487.63,0.00024383,2]
[378142384,1754745065584,-460.0,0.00024383,2]
[378142385,1754745065594,-460.0,0.00024383,2]
[378142386,1754745065605,-1161.91,0.00024383,2]
[378142387,1754745065615,-467.17,0.00024383,2]
[378142388,1754745065625,-1392.39,0.00024383,2]
[378142389,1754745065635,-460.0,0.00024383,2]
[378142390,1754745065644,-505.08,0.00024383,2]
[378142391,1754745065654,-2505.69,0.00024383,2]
[378142392,1754745065663,-186.7298308,0.00024383,2]
[378142393,1754745065673,-1216.33,0.00024383,2]
[378142394,1754745065683,-460.0,0.00024383,2]
[378142395,1754745065693,-331.52761962,0.00024383,2]
[378142396,1754745065703,-905.89,0.00024383,2]
[378142397,1754745065714,-2044.76129939,0.00024393,2]
[378142398,1754745065724,-441.0,0.00024398,2]
[378142399,1754745065735,-675.29,0.00024422,2]
[378142400,1754745065746,-441.0,0.00024446,2]
[378142401,1754745065755,-151.0,0.00024446,7]
[378142402,1754745065765,-151.0,0.00024446,7]
[378142403,1754745065774,-151.0,0.00024446,7]
[378142404,1754745065784,-151.0,0.00024446,7]
[378142405,1754745065796,-151.0,0.00024446,7]
[378142406,1754745065809,-441.0,0.0002449,2]
[378142407,1754745065819,-441.0,0.00024503,2]
[378142408,1754745065829,-1112.72520775,0.00024557,2]
[378142409,1754745065839,-151.0,0.00024638,7]
[378142410,1754745065849,-151.0,0.00024638,7]
[378142411,1754745065858,-460.0,0.00024657,2]
[378142412,1754745065868,-151.0,0.00024657,7]
[378142413,1754745065879,-460.0,0.00024657,2]
[378142414,1754745065888,-423.566582,0.00024657,7]
[378142415,1754745065898,-423.566582,0.00024657,7]
[378142416,1754745065907,-460.0,0.00024657,2]
[378142417,1754745065916,-151.0,0.00024657,7]
[378142418,1754745065926,-616.05,0.00024657,2]
[378142419,1754745065935,-151.0,0.00024657,7]
[378142420,1754745065945,-460.0,0.00024657,2]
[378142421,1754745065955,-195.621685,0.00024657,7]
[378142422,1754745065964,-464.2,0.00024657,2]
[378142423,1754745065974,-460.0,0.00024657,2]
[378142424,1754745065983,-460.0,0.00024657,2]
[378142425,1754745065992,-460.0,0.00024657,2]
[378142426,1754745066002,-460.0,0.00024657,2]
[378142427,1754745066012,-460.0,0.00024657,2]
[378142428,1754745066022,-513.74,0.00024657,2]
[378142429,1754745066032,-460.0,0.00024657,2]
[378142430,1754745066041,-460.0,0.00024657,2]
[378142431,1754745066051,-460.0,0.00024657,2]
[378142432,1754745066062,-497.4432277,0.00024657,2]
[378142433,1754745066072,-460.0,0.00024657,2]
[378142434,1754745066081,-638.04,0.00024657,2]
[378142435,1754745066091,-460.0,0.00024657,2]
[378142436,1754745066101,-460.0,0.00024657,2]
[378142437,1754745066110,-808.51,0.00024657,2]
[378142438,1754745066119,-477.21,0.00024657,2]
[378142439,1754745066129,-460.0,0.00024657,2]
[378142440,1754745066139,-2427.09,0.00024657,4]
[378142441,1754745066149,-1681.48,0.00024657,2]
[378142442,1754745066158,-1027.3,0.00024657,2]
[378142443,1754745066168,-795.13,0.00024657,2]
[378142444,1754745066178,-490.91,0.00024657,2]
[378142445,1754745066187,-638.22,0.00024657,2]
[378142446,1754745066198,-875.01,0.00024657,2]
[378142447,1754745066207,-460.0,0.00024657,2]
[378142448,1754745066217,-460.0,0.00024657,2]
[378142449,1754745066226,-728.0,0.00024657,2]
[378142450,1754745066236,-480.91,0.00024657,2]
[378142451,1754745066245,-1302.92,0.00024657,2]
[378142452,1754745066255,-1545.8,0.00024657,2]
[378142453,1754745066264,-495.1,0.00024657,2]
[378142454,1754745066273,-525.63,0.00024657,2]
[378142455,1754745066283,-526.31,0.00024657,2]
[378142456,1754745066293,-1355.34,0.00024657,2]
[378142457,1754745066304,-923.81,0.00024657,2]
[378142458,1754745066314,-4472.04,0.00024657,2]
[378142459,1754745066323,-2093.72,0.00024657,2]
[378142460,1754745066332,-460.0,0.00024657,2]
[378142461,1754745066341,-462.12,0.00024657,2]
[378142462,1754745066351,-867.17,0.00024657,2]
[378142463,1754745066360,-637.96,0.00024657,2]
[378142464,1754745066370,-460.0,0.00024657,2]
[378142465,1754745066379,-535.02,0.00024657,2]
[378142466,1754745066388,-460.0,0.00024657,2]
[378142467,1754745066398,-460.0,0.00024657,2]
[378142468,1754745066408,-744.36,0.00024657,2]
[378142469,1754745066418,-1487.63,0.00024657,2]
[378142470,1754745066428,-460.0,0.00024657,2]
[378142471,1754745066438,-487.13639143,0.00024657,2]
[378142472,1754745066447,-1161.91,0.00024657,2]
[378142473,1754745066457,-467.17,0.00024657,2]
[378142474,1754745066467,-1392.39,0.00024657,2]
[378142475,1754745066476,-505.08,0.00024657,2]
[378142476,1754745066486,-2505.69,0.00024657,2]
[378142477,1754745066496,-1216.33,0.00024657,2]
[378142478,1754745066505,-460.0,0.00024657,2]
[378142479,1754745066514,-905.89,0.00024657,2]
[378142480,1754745066523,-200.0,0.00024658,15]
[378142481,1754745066533,-151.0,0.00024658,3]
[378142482,1754745066542,-260.30979556,0.00024658,3]
[378142483,1754745066554,-151.0,0.00024658,7]
[378142484,1754745066563,-151.0,0.00024658,7]
[378142485,1754745066573,-500.0,0.00024658,2]
[378142486,1754745066582,-245.0,0.00024658,2]
[378142487,1754745066592,-265.11973,0.00024658,7]
[378142488,1754745066601,-265.11973,0.00024658,7]
[378142489,1754745066611,-161.776111,0.00024658,7]
[378142490,1754745066620,-161.776111,0.00024658,7]
[378142491,1754745066630,-500.0,0.00024658,2]
[378142492,1754745066640,-152.73992829,0.00024658,2]
[378142493,1754745066650,-517.0,0.00024658,2]
[378142494,1754745066660,-160.0,0.00024668,3]
[378142495,1754745066669,-441.0,0.00024741,2]
[378142496,1754745066679,-151.0,0.000248,7]
[378142497,1754745066688,-192.215835,0.000248,7]
[378142498,1754745066698,-151.742876,0.000248,7]
[378142499,1754745066707,-151.0,0.000248,7]
[378142500,1754745066716,-450.445757,0.000248,7]
[378142501,1754745066726,-450.445757,0.000248,7]
[378142502,1754745066736,-151.0,0.000248,7]
[378142503,1754745066745,-151.0,0.000248,7]
[378142504,1754745066754,-441.0,0.00024803,2]
[378142505,1754745066764,-460.0,0.00024834,2]
[378142506,1754745066773,-1052.13338448,0.00024875,2]
[378142507,1754745066783,-151.0,0.000249,7]
[378142508,1754745066795,-187.857263,0.000249,7]
[378142509,1754745066807,-187.857263,0.000249,7]
[378142510,1754745066816,-151.0,0.000249,7]
[378142511,1754745066827,-222.035446,0.000249,7]
[378142512,1754745066836,-151.0,0.000249,7]
[378142513,1754745066846,-151.0,0.000249,7]
[378142514,1754745066855,-151.0,0.000249,7]
[378142515,1754745066866,-151.0,0.000249,7]
[378142516,1754745066876,-151.0,0.000249,7]
[378142517,1754745066885,-151.0,0.000249,7]
[378142518,1754745066895,-151.0,0.000249,7]
[378142519,1754745066905,-151.0,0.000249,7]
[378142520,1754745066914,-151.0,0.000249,7]
[378142521,1754745066923,-151.0,0.000249,7]
[378142522,1754745066932,-151.0,0.000249,7]
[378142523,1754745066941,-151.0,0.000249,7]
[378142524,1754745066951,-151.0,0.000249,7]
[378142525,1754745066961,-151.0,0.000249,7]
[378142526,1754745066970,-151.0,0.000249,7]
[378142527,1754745066980,-151.0,0.000249,7]
[378142528,1754745066989,-288.856446,0.000249,7]
[378142529,1754745066998,-288.856446,0.000249,7]
[378142530,1754745067008,-288.856446,0.000249,7]
[378142531,1754745067017,-151.0,0.000249,7]
[378142532,1754745067027,-288.856446,0.000249,7]
[378142533,1754745067036,-151.0,0.000249,7]
[378142534,1754745067046,-151.0,0.000249,7]
[378142535,1754745067057,-233.148542,0.000249,7]
[378142536,1754745067067,-233.148542,0.000249,7]
[378142537,1754745067078,-151.0,0.000249,7]
[378142538,1754745067088,-151.0,0.000249,7]
[378142539,1754745067097,-151.0,0.000249,7]
[378142540,1754745067107,-151.0,0.000249,7]
[378142541,1754745067117,-265.11973,0.000249,7]
[378142542,1754745067127,-265.11973,0.000249,7]
[378142543,1754745067136,-56411.06901826,0.000249,2]
[378142544,1754745067462,-460.65878156,0.00021917,2]
[378142545,1754745067472,-460.0,0.00021917,2]
[378142546,1754745067482,-460.0,0.00022191,2]
[378142547,1754745067492,-460.0,0.00022465,2]
[378142548,1754745067503,-460.0,0.00022739,2]
[378142549,1754745067514,-151.0,0.00023174,2]
[378142550,1754745067524,-250.0,0.00023174,2]
[378142551,1754745067533,-17294.30363063,0.000249,2]
[378142552,1754745067651,-460.0,0.00021917,2]
[378142553,1754745067661,-460.0,0.00021917,2]
[378142554,1754745067671,-516.08,0.00021917,2]
[378142555,1754745067680,-460.0,0.00022191,2]
[378142556,1754745067689,-18111.19419798,0.000249,2]
[378142557,1754745067744,-2037.34,0.00021606,10]
[378142558,1754745067754,-460.0,0.00021917,2]
[378142559,1754745067763,-460.0,0.00022191,2]
[378142560,1754745067773,-577.98961653,0.00022465,2]
[378142561,1754745067782,-408.0,0.0002355,2]
[378142562,1754745067792,-7023.11038347,0.000249,2]
[378142563,1754745068223,-58679.73319732,0.000249,2]
[378142565,1754745134720,371.138606,0.00013699,2]
[378142566,1754745134937,371.138606,0.00020187,2]
[378142567,1754745150784,-441.70038445,0.00021615,2]
[378142568,1754745150808,-251.79293069,0.00021616,2]
[378142569,1754745150830,-215.40758176,0.00021907,3]
[378142570,1754745150851,-1200.0,0.00021916,2]
[378142571,1754745150872,-300.0,0.00021916,2]
[378142572,1754745150898,-300.0,0.00021916,2]
[378142573,1754745150919,-50000.0,0.00021917,2]
[378142574,1754745150940,-460.0,0.00021917,2]
[378142575,1754745150960,-460.0,0.00021917,2]
[378142576,1754745150983,-460.0,0.00021917,2]
[378142577,1754745151003,-460.0,0.00021917,2]
[378142578,1754745151023,-460.0,0.00021917,2]
[378142579,1754745151045,-460.0,0.00021917,2]
[378142580,1754745151066,-460.0,0.00021917,2]
[378142581,1754745151086,-460.0,0.00021917,2]
[378142582,1754745151107,-460.0,0.00021917,2]
[378142583,1754745151130,-460.0,0.00021917,2]
[378142584,1754745151151,-460.0,0.00021917,2]
[378142585,1754745151173,-910.8,0.00021917,2]
[378142586,1754745151194,-0.2991031,0.00021917,2]
[378142587,1754745151989,347779.8043124,0.00021516,2]
[378142589,1754745374471,431.1578537,0.0002746,30]
[378142590,1754745378090,630.0,0.00028,30]
[378142591,1754745395469,3621.29969276,0.000199,2]
[378142592,1754745434710,431.1578537,0.0002746,30]
[378142593,1754745483527,20109.59217002,0.00031638,30]
[378142594,1754745494394,431.1578537,0.0002746,30]
[378142595,1754745554418,431.1578537,0.0002746,30]
[378142596,1754745579983,3500.93922802,0.000199,2]
[378142597,1754745603899,-3500.939228,0.00021655,2]
[378142598,1754745603921,-164.71783836,0.00021817,2]
[378142599,1754745603942,-1935.11051499,0.00021817,2]
[378142600,1754745603968,-1200.0,0.00021905,2]
[378142601,1754745603991,-300.0,0.00021915,2]
[378142602,1754745604015,-300.0,0.00021915,2]
[378142603,1754745604040,-300.0,0.00021915,2]
[378142604,1754745604063,-300.0,0.00021915,2]
[378142605,1754745604085,-17512.23241865,0.00021917,2]
[378142606,1754745614463,431.1578537,0.0002746,30]
[378142607,1754745625842,168.91627,0.00021069,2]
[378142608,1754745658139,600.0,0.0002159,2]
[378142609,1754745674644,431.1578537,0.0002746,30]
[378142610,1754745735129,431.1578537,0.0002746,30]
[378142611,1754745770508,3318.34085852,0.000199,2]
[378142612,1754745793687,421.4513167,0.0002746,30]
[378142613,1754745833145,24900.0,0.00020966,2]
[378142614,1754745956199,3342.21230955,0.000199,2]
[378142617,1754745972790,2762.2024698,0.00020931,2]
[378142630,1754746119777,1278.47704481,0.00018,2]
[378142631,1754746123771,195.62168414,0.0002,120]
[378142633,1754746126893,7543.89583545,0.00019,2]
[378142634,1754746144730,3230.80523271,0.000199,2]
[378142635,1754746186033,492.12876146,0.0002159,2]
[378142664,1754746237465,-3230.80523254,0.00021655,2]
[378142665,1754746237475,-1200.0,0.00021905,2]
[378142667,1754746237485,-1200.0,0.00021906,2]
[378142668,1754746237495,-300.0,0.00021906,2]
[378142669,1754746237505,-300.0,0.00021906,2]
[378142670,1754746237514,-300.0,0.00021906,2]
[378142671,1754746237524,-500.0,0.00021916,2]
[378142672,1754746237533,-500.0,0.00021916,2]
[378142673,1754746237543,-500.0,0.00021916,2]
[378142674,1754746237553,-500.0,0.00021916,2]
[378142675,1754746237563,-500.0,0.00021916,2]
[378142676,1754746237572,-225.31890791,0.00021916,2]
[378142677,1754746237582,-500.0,0.00021916,2]
[378142678,1754746237591,-500.0,0.00021916,2]
[378142679,1754746237600,-500.0,0.00021916,2]
[378142680,1754746237609,-321.78453762,0.00021916,2]
[378142681,1754746237619,-500.0,0.00021916,2]
[378142682,1754746237628,-13851.04055018,0.00021917,2]
[378142683,1754746237637,-461.80266231,0.00021917,2]
[378142684,1754746237647,-460.0,0.00021917,2]
[378142686,1754746237656,-460.0,0.00021917,2]
[378142688,1754746237669,-460.0,0.00021917,2]
[378142690,1754746237680,-518.04767297,0.00021917,2]
[378142692,1754746237689,-460.0,0.00021917,2]
[378142694,1754746237699,-460.0,0.00021917,2]
[378142696,1754746237708,-460.0,0.00021917,2]
[378142698,1754746237719,-460.0,0.00021917,2]
[378142700,1754746237729,-460.0,0.00021917,2]
[378142702,1754746237738,-430.11290494,0.00021917,2]
[378142706,1754746238029,-29.88709506,0.00021917,2]
[378142707,1754746238039,-460.0,0.00021917,2]
[378142708,1754746238050,-460.0,0.00021917,2]
[378142709,1754746238060,-460.0,0.00021917,2]
[378142710,1754746238070,-460.0,0.00021917,2]
[378142711,1754746238078,-460.0,0.00021917,2]
[378142713,1754746238088,-460.0,0.00021917,2]
[378142714,1754746238098,-465.25074483,0.00021917,2]
[378142715,1754746238107,-460.0,0.00021917,2]
[378142716,1754746238121,-460.0,0.00021917,2]
[378142717,1754746238131,-460.0,0.00021917,2]
[378142718,1754746238140,-460.0,0.00021917,2]
[378142720,1754746238149,-460.0,0.00021917,2]
[378142722,1754746238160,-460.0,0.00021917,2]
[378142724,1754746238169,-460.0,0.00021917,2]
[378142725,1754746238178,-460.0,0.00021917,2]
[378142726,1754746238189,-460.0,0.00021917,2]
[378142727,1754746238199,-276.56,0.00021917,2]
[378142728,1754746238209,-460.0,0.00021917,2]
[378142729,1754746238218,-460.0,0.00021917,2]
[378142730,1754746238228,-161.07628312,0.00021917,2]
[378142731,1754746238238,-460.0,0.00021917,2]
[378142732,1754746238247,-460.0,0.00021917,2]
[378142734,1754746238257,-460.0,0.00021917,2]
[378142735,1754746238266,-460.0,0.00021917,2]
[378142737,1754746238275,-478.47,0.00021917,2]
[378142739,1754746238285,-460.0,0.00021917,2]
[378142741,1754746238295,-460.0,0.00021917,2]
[378142743,1754746238306,-460.0,0.00021917,2]
[378142745,1754746238316,-460.0,0.00021917,2]
[378142747,1754746238325,-450.66124471,0.00021917,2]
[378142748,1754746238335,-460.0,0.00021917,2]
[378142749,1754746238344,-463.73275121,0.00021917,2]
[378142750,1754746238354,-450.25701746,0.00021917,2]
[378142751,1754746238364,-460.0,0.00021917,2]
[378142752,1754746238373,-467.56287113,0.00021917,2]
[378142753,1754746238383,-460.0,0.00021917,2]
[378142754,1754746238392,-460.0,0.00021917,2]
[378142755,1754746238402,-460.0,0.00021917,2]
[378142756,1754746238411,-460.0,0.00021917,2]
[378142757,1754746238421,-478.53,0.00021917,2]
[378142759,1754746238430,-460.0,0.00021917,2]
[378142761,1754746238440,-460.0,0.00021917,2]
[378142762,1754746238450,-460.0,0.00021917,2]
[378142763,1754746238459,-460.0,0.00021917,2]
[378142764,1754746238469,-399.37608164,0.00021917,2]
[378142765,1754746238478,-460.0,0.00021917,2]
[378142767,1754746238488,-460.0,0.00021917,2]
[378142769,1754746238497,-460.0,0.00021917,2]
[378142771,1754746238506,-461.08953154,0.00021917,2]
[378142773,1754746238516,-460.0,0.00021917,2]
[378142775,1754746238525,-460.0,0.00021917,2]
[378142777,1754746238534,-460.0,0.00021917,2]
[378142779,1754746238544,-460.0,0.00021917,2]
[378142781,1754746238554,-460.0,0.00021917,2]
[378142783,1754746238564,-460.0,0.00021917,2]
[378142785,1754746238574,-286.19946369,0.00021917,2]
[378142787,1754746238586,-173.80053631,0.00021917,2]
[378142789,1754746238596,-460.0,0.00021917,2]
[378142791,1754746238605,-606.38,0.00021917,2]
[378142793,1754746238615,-460.0,0.00021917,2]
[378142795,1754746238624,-460.0,0.00021917,2]
[378142797,1754746238634,-460.0,0.00021917,2]
[378142799,1754746238643,-460.0,0.00021917,2]
[378142801,1754746238653,-460.0,0.00021917,2]
[378142804,1754746238666,-460.0,0.00021917,2]
[378142806,1754746238675,-981.71513215,0.00021917,2]
[378142814,1754746238740,-509.32012587,0.00021917,2]
[378142907,1754746240611,-329.19005445,0.00021917,2]
[378143002,1754746242165,334.024745,0.00013699,2]
[378143003,1754746242367,334.024745,0.00020187,2]
[378143005,1754746243573,-505.73468753,0.00021917,2]
[378143008,1754746243583,-770.48,0.00021917,2]
[378143009,1754746243592,-500.0,0.00021917,2]
[378143012,1754746243602,-500.0,0.00021917,2]
[378143014,1754746243612,-460.0,0.00021917,2]
[378143015,1754746243621,-460.0,0.00021917,2]
[378143018,1754746243630,-656.26,0.00021917,2]
[378143019,1754746243639,-460.0,0.00021917,2]
[378143022,1754746243649,-460.0,0.00021917,2]
[378143024,1754746243658,-460.0,0.00021917,2]
[378143026,1754746243667,-591.63606736,0.00021917,2]
[378143028,1754746243676,-466.77251127,0.00021917,2]
[378143030,1754746243685,-1223.16,0.00021917,2]
[378143032,1754746243695,-460.0,0.00021917,2]
[378143033,1754746243704,-460.0,0.00021917,2]
[378143035,1754746243714,-460.0,0.00021917,2]
[378143037,1754746243723,-460.0,0.00021917,2]
[378143039,1754746243732,-460.0,0.00021917,2]
[378143041,1754746243742,-460.0,0.00021917,2]
[378143042,1754746243751,-460.0,0.00021917,2]
[378143044,1754746243761,-460.0,0.00021917,2]
[378143046,1754746243770,-460.0,0.00021917,2]
[378143048,1754746243779,-596.35,0.00021917,2]
[378143050,1754746243788,-460.0,0.00021917,2]
[378143051,1754746243798,-55.87217322,0.00021917,2]
[378143074,1754746246944,-344.75789992,0.00021917,2]
[378143075,1754746247056,-59.36992686,0.00021917,2]
[378143076,1754746247067,-210.73007314,0.00021917,2]
[378143078,1754746247388,-249.26992686,0.00021917,2]
[378143079,1754746247398,-460.0,0.00021917,2]
[378143080,1754746247408,-460.0,0.00021917,2]
[378143081,1754746247418,-464.38463811,0.00021917,2]
[378143082,1754746247427,-460.0,0.00021917,2]
[378143083,1754746247437,-1031.48,0.00021917,2]
[378143084,1754746247447,-505.26,0.00021917,2]
[378143085,1754746247456,-1657.52,0.00021917,2]
[378143086,1754746247466,-460.0,0.00021917,2]
[378143087,1754746247475,-503.6263899,0.00021917,2]
[378143088,1754746247485,-460.0,0.00021917,2]
[378143089,1754746247494,-460.0,0.00021917,2]
[378143090,1754746247503,-231.21330178,0.00021917,2]
[378143091,1754746319087,3744.25871801,0.0003161,120]
[378143092,1754746327562,3015.41821725,0.000199,2]
[378143100,1754746526243,2914.13792101,0.000199,2]
[378143101,1754746577740,163.03828664,0.00019817,2]
[378143107,1754746713687,158.0,0.00021,3]
[378143108,1754746713905,2892.86920286,0.000199,2]
[378143109,1754746730030,160.0,0.000215,3]
[378143110,1754746735836,158.0,0.000215,3]
[378143111,1754746739039,168.91627,0.00020808,2]
[378143112,1754746761037,158.0,0.000215,4]
[378143113,1754746771440,158.0,0.000215,4]
[378143114,1754746793608,24900.0,0.00020808,2]
[378143116,1754746835908,1230119.39991033,0.000215,2]
[378143117,1754746835932,5398.20666959,0.000215,2]
[378143118,1754746835954,12500.0,0.000215,2]
[378143119,1754746835975,12500.0,0.000215,2]
[378143120,1754746835997,12500.0,0.000215,2]
[378143121,1754746836018,12500.0,0.000215,2]
[378143122,1754746836040,12500.0,0.000215,2]
[378143123,1754746836062,12500.0,0.000215,2]
[378143124,1754746836088,12500.0,0.000215,2]
[378143125,1754746836110,12500.0,0.000215,2]
[378143126,1754746836132,12500.0,0.000215,2]
[378143127,1754746836154,9320.10639008,0.000215,2]
[378143128,1754746879315,176.3260507,0.000194,2]
[378143129,1754746904749,3003.56755922,0.000199,2]
[378143130,1754746904775,708.7456907,0.000199,2]
[378143131,1754746909349,12728.0,0.00031643,30]
[378143132,1754746961149,2400.9951595,0.00020968,2]
[378143134,1754747097005,3697.26699432,0.000199,2]
[378143135,1754747180684,150.0,0.000194,2]
[378143137,1754747289136,3574.02476106,0.000199,2]
[378143138,1754747289414,361.676622,0.00013699,2]
[378143139,1754747289637,361.676622,0.00020187,2]
[378143140,1754747308627,809.44416471,0.00026,30]
[378143141,1754747367157,1000.0,0.00020809,2]
[378143152,1754747375087,245.61415042,0.00020808,2]